Cogmind - Beta 15 @@@ ROGUE MODE // 2025.07.16 @ 17:17:30 Player: SpaceExplorer337 Result: Destroyed by S-10 Pest with Light Assault Rifle Performance ------------- Evolutions (2) 1000 Regions Visited (6) 1200 Robots Destroyed (65) 325 Value Destroyed (1513) 1513 Prototype IDs (1) 20 Alien Tech Used (0) 0 Bonus (300) 300 TOTAL SCORE: 4358 Bonus ------- Aligned with FarCom 300 Cogmind --------- Core Integrity 0/550 Matter 365/400 Energy 290/290 System Corruption 0% Temperature Cool (0) Movement Walking (190) Ox1 Location -8/Materials Parts ------- > --- POWER (1) -------- Improved Deuterium Engine > --- PROPULSION (4) --- Improved Carbon-fiber Leg Improved Carbon-fiber Leg Aerolev Unit > --- UTILITY (4) ------ High-capacity Storage Unit Medium Matter Pod Terrain Scan Processor Advanced Targeting Computer > --- WEAPON (2) ------- Light Assault Rifle Gauss Rifle > --- INVENTORY (20) --- Light Nuclear Core Light Nuclear Core Light Nuclear Core Heat Sink Cooling System High-capacity Battery (250) Improved Sensor Array Improved Signal Interpreter Improved Terrain Scanner Improved Medium Armor Plating Improved Medium Armor Plating Particle Gun Particle Gun Light Assault Rifle XL Autogun Array Peak State ------------ > --- POWER ------------ Improved Ion Engine > --- PROPULSION ------- Aerolev Unit Aerolev Unit Aerolev Unit Aerolev Unit > --- UTILITY ---------- Heat Sink High-capacity Storage Unit Improved Terrain Scanner Terrain Scan Processor > --- WEAPON ----------- Heavy Assault Cannon > --- INVENTORY -------- Improved Ion Engine Deuterium Engine Light Nuclear Core Heat Sink Cooling System High-capacity Battery Medium Matter Pod Improved Sensor Array Improved Signal Interpreter Improved Terrain Scanner Advanced Targeting Computer Particle Gun Particle Gun Light Assault Rifle Autogun XL Autogun Array Improved Light Cannon [Rating: 38] Favorites ----------- Power Ion Engine Engine Ion Engine Propulsion Aluminum Leg Leg Aluminum Leg Hover Unit Aerolev Unit Utility Terrain Scan Processor Device Improved Terrain Scanner Storage High-capacity Storage Unit Processor Terrain Scan Processor Weapon Light Assault Rifle Energy Gun Medium Laser Ballistic Gun Light Assault Rifle Ballistic Cannon Improved Light Cannon Build | -11 -10 -9 -9 -9 -8 -8 ------- Run | Yrd Mat Mat Min Exi Min Mat Slots Evolved 4 | . . 2 . . . 2 Power . | . . . . . . . Propulsion 2 | . . 1 . . . 1 Utility 2 | . . 1 . . . 1 Weapon . | . . . . . . . Parts Attached 49 | 7 7 5 2 1 3 24 Power 7 | 1 2 1 . . . 3 Engine 7 | 1 2 1 . . . 3 Core . | . . . . . . . Reactor . | . . . . . . . Propulsion 18 | 2 2 1 1 . . 12 Treads . | . . . . . . . Leg 14 | 2 2 1 1 . . 8 Wheel . | . . . . . . . Hover 4 | . . . . . . 4 Flight . | . . . . . . . Utility 10 | 2 . 3 . 1 1 3 Device 4 | 1 . 1 . . 1 1 Storage 4 | 1 . 1 . 1 . 1 Processor 2 | . . 1 . . . 1 Hackware . | . . . . . . . Protection . | . . . . . . . Artifact . | . . . . . . . Weapon 14 | 2 3 . 1 . 2 6 Energy Gun 1 | 1 . . . . . . Energy Cannon . | . . . . . . . Ballistic Gun 11 | 1 3 . 1 . 1 5 Ballistic Cannon 2 | . . . . . 1 1 Launcher . | . . . . . . . Special Weapon . | . . . . . . . Impact Weapon . | . . . . . . . Slashing Weapon . | . . . . . . . Piercing Weapon . | . . . . . . . Special Melee Weapon . | . . . . . . . Unidentified Prototypes 1 | . . . . . . 1 Parts Lost 30 | . 5 1 1 . 3 20 Power 5 | . 2 . . . . 3 Propulsion 13 | . 2 . . . 1 10 Utility 4 | . . 1 1 . . 2 Weapon 8 | . 1 . . . 2 5 Highest Loss Streak 7 | . 4 1 1 . 2 7 To Critical Strikes 1 | . 1 . . . . . Average Backups 12 | 3 5 7 9 10 15 15 Power 1 | 1 1 1 2 2 2 2 Propulsion . | 1 . . . . . 1 Utility 6 | . 1 3 5 6 9 7 Weapon 3 | . 1 2 2 2 3 4 Tool/Special . | . . . . . . . Unused Backups 21 | . . . 1 . . 20 Power 4 | . . . . . . 4 Propulsion 2 | . . . . . . 2 Utility 11 | . . . . . . 11 Weapon 4 | . . . 1 . . 3 Tool/Special . | . . . . . . . Average Slot Usage (%) 93 | . 100 98 96 96 94 86 Engine 10 | . 14 11 11 11 11 7 Leg 26 | . 28 33 33 33 28 15 Hover 3 | . . . . . . 12 Device 7 | . 14 10 8 . 10 6 Storage 14 | . 14 11 11 19 11 15 Processor 10 | . . 10 11 11 11 13 Ballistic Gun 15 | . 23 22 22 22 14 8 Ballistic Cannon 4 | . . . . . 7 7 Peak Build Rating 38 | 9 10 13 13 15 19 38 Average Rating 17 | 4 9 12 12 11 18 26 On Entrance 10 | . 9 10 13 10 15 19 Naked Turns . | . . . . . . . Heaviest Build 62 | 14 15 19 19 58 58 62 Greatest Support 40 | 20 20 30 30 30 30 40 Greatest Overweight (x) 6 | 4 . . . 1 2 6 Average Overweight (x) . | 2 . . . . 1 1 Largest Inventory Capacity 20 | 8 8 10 10 20 20 20 Average Capacity 16 | 7 8 9 10 17 20 20 Most Carried 20 | 5 8 9 10 15 20 20 Average Carried 14 | 3 5 7 9 11 18 18 Final Capacity 20 | 8 8 10 10 20 20 20 Final Carried 20 | 3 7 9 10 15 20 18 Class Distribution -------------------- 44% | Scavenger-Mutant 31% | Scavenger-Skirmisher 18% | Mutant 6% | Skirmisher Dominant Class ---------------- Mutant | -10/Materials Scavenger-Mutant | -9/Materials Scavenger-Mutant | -9/Mines Scavenger-Mutant | -9/Exiles Scavenger-Skirmisher | -8/Mines Scavenger-Mutant | -8/Materials Resources | -11 -10 -9 -9 -9 -8 -8 ----------- Run | Yrd Mat Mat Min Exi Min Mat Matter Collected 1876 | 286 212 60 226 . 160 932 Remotely . | . . . . . . . Salvage Created 1948 | 169 494 110 97 . 109 969 Parts 129 | 13 32 7 2 . 13 62 Haulers Intercepted 2 | . . . . . . 2 Recyclers Shooed 3 | . 1 . . . . 2 Parts Field Recycled . | . . . . . . . Retrieved Matter . | . . . . . . . Parts Self-Destructed . | . . . . . . . Prevented . | . . . . . . . Kills | -11 -10 -9 -9 -9 -8 -8 ------- Run | Yrd Mat Mat Min Exi Min Mat Combat Hostiles Destroyed 44 | . 11 4 2 . 6 21 Guns 30 | . 11 4 2 . 3 10 Cannons 14 | . . . . . 3 11 Classes Destroyed 11 | 3 3 1 . . 1 3 Worker 6 | 1 1 . . . 2 2 Builder 2 | . . . . . 1 1 Tunneler 4 | 4 . . . . . . Hauler 2 | . . . . . . 2 Recycler 4 | 1 2 . . . . 1 Watcher 3 | . 1 . . . . 2 Swarmer 19 | . 6 3 . . 6 4 Grunt 19 | . 5 . 2 . . 12 Sentry 3 | . . 1 . . . 2 Specialist 2 | . . . . . . 2 Hunter 1 | . . . . . . 1 Best Kill Streak 6 | 3 6 3 2 . 4 5 Combat Bots Only 5 | . 5 3 2 . 2 4 Max Kills in Single Turn 2 | 1 2 1 1 . 2 2 Gunslinging 1 | . 1 . . . . . Exploded . | . . . . . . . Melee . | . . . . . . . Uniques/NPCs Destroyed . | . . . . . . . Combat | -11 -10 -9 -9 -9 -8 -8 -------- Run | Yrd Mat Mat Min Exi Min Mat Hostile Shots Fired 398 | . 104 19 16 . 47 212 Missed 114 | . 24 7 7 . 11 65 Hits 284 | . 80 12 9 . 36 147 Projectile 284 | . 80 12 9 . 36 147 Critical Strikes 11 | . 1 1 . . . 9 Damage Taken 3755 | . 733 133 127 . 281 2481 Core 669 | . 98 . . . 19 552 Absorbed by Shields . | . . . . . . . Regen/Repaired (Parts) 77 | . . . . . . 77 Core Remaining (%) 85 | 100 60 . . . 95 . Volleys Fired 222 | 16 52 9 10 . 25 110 Largest 2 | 2 2 2 2 . 2 2 Hottest 70 | 70 70 40 40 . 56 56 Shots Fired 390 | 32 103 18 20 . 48 169 Gun 299 | 32 103 18 20 . 36 90 Cannon 91 | . . . . . 12 79 Launcher . | . . . . . . . Special . | . . . . . . . Kinetic 372 | 16 101 18 20 . 48 169 Thermal 18 | 16 2 . . . . . Explosive . | . . . . . . . Electromagnetic . | . . . . . . . Robot Hit Streak 9 | 5 8 6 6 . 3 9 Robot Miss Streak 6 | 2 4 1 2 . 6 5 Penetration Max . | . . . . . . . Secondary Targets 5 | . 3 1 1 . . . Max Gunslinging Chain 1 | . 1 1 1 . . . Shots Hit Robots 221 | 20 61 12 15 . 19 94 Core Hits 100 | 8 24 7 7 . 12 42 Critical Kills . | . . . . . . . Critical Parts Destroyed 1 | . . . 1 . . . Critical Strikes 6 | 1 . . 1 . . 4 Burn 1 | 1 . . . . . . Destroy 1 | . . . 1 . . . Blast 4 | . . . . . . 4 Melee Attacks . | . . . . . . . Impact . | . . . . . . . Slashing . | . . . . . . . Piercing . | . . . . . . . Sneak Attacks . | . . . . . . . Combat Hostiles . | . . . . . . . Follow-up Attacks . | . . . . . . . Damage Inflicted 3877 | 181 727 144 135 . 307 2383 Guns 2100 | 181 723 135 135 . 182 744 Cannons 1575 | . . . . . 125 1450 Explosions 183 | . . . . . . 183 Melee . | . . . . . . . Ramming 19 | . 4 9 . . . 6 Kinetic 3573 | 79 723 135 135 . 307 2194 Thermal 102 | 102 . . . . . . Explosive 183 | . . . . . . 183 Electromagnetic . | . . . . . . . Impact . | . . . . . . . Slashing . | . . . . . . . Piercing . | . . . . . . . Highest Corruption . | . . . . . . . Average Corruption . | . . . . . . . Corruption Purged . | . . . . . . . Corruption Blocked . | . . . . . . . Overload Shots . | . . . . . . . Overflow Damage 67 | . . . . . 1 66 Projectiles 36 | . . . . . 1 35 Explosions 31 | . . . . . . 31 Melee . | . . . . . . . Knockbacks 16 | . . . . . 1 15 Impact . | . . . . . . . Kinetic 16 | . . . . . 1 15 Secondary . | . . . . . . . Self-Inflicted Damage 215 | . . . . . . 215 Shots 2 | . . . . . . 2 Rammed 2 | . . . . . . 2 Targets Rammed 4 | . 1 1 . . . 2 Kicked 2 | . 1 1 . . . . Crushed . | . . . . . . . Highest Temperature 90 | 90 40 24 12 . 10 47 Average Temperature 19 | 38 13 15 6 . 5 11 Received Heat Transfer 1368 | . 216 45 72 . . 1035 Siege Activations . | . . . . . . . Martial Activations . | . . . . . . . Shielding Activations . | . . . . . . . Robots Disrupted . | . . . . . . . Combat Hostiles . | . . . . . . . Robots Corrupted . | . . . . . . . Combat Hostiles . | . . . . . . . Parts Fried . | . . . . . . . Impact Corruptions . | . . . . . . . Robots Melted . | . . . . . . . Combat Hostiles . | . . . . . . . Parts Melted 1 | 1 . . . . . . Heat Transferred 370 | 370 . . . . . . Parts Sabotaged . | . . . . . . . Parts Stolen . | . . . . . . . Parts Stripped . | . . . . . . . Power Chain Reactions . | . . . . . . . Alert | -11 -10 -9 -9 -9 -8 -8 ------- Run | Yrd Mat Mat Min Exi Min Mat Maximum Alert Level . | . . . . . . . Low Security (%) 100 | 100 100 100 100 . 100 100 Level 1 . | . . . . . . . Level 2 . | . . . . . . . Level 3 . | . . . . . . . Level 4 . | . . . . . . . Level 5 . | . . . . . . . High Security . | . . . . . . . Max Security . | . . . . . . . Peak Influence 195 | 10 195 70 46 . 60 189 Initial 63 | . . 63 23 . . . Average 47 | 1 109 34 10 . 9 89 Influence Increases 1484 | 30 349 116 56 . 216 717 Destroy 0b10 Robot/C 880 | . 220 80 40 . 120 420 Destroy 0b10 Robot/NC 105 | 30 20 . . . 15 40 Destroy Leader 190 | . 42 20 10 . 20 98 Allied During Kill 6 | . . . 6 . . . Successful Hack 28 | . 7 16 . . . 5 Disable Machine 75 | . . . . . . 75 Destroy Structure 50 | . . . . . 1 49 Partial Spotted 15 | . . . . . . 15 Lose Combat Pursuer 135 | . 60 . . . 60 15 Influence Decreases 1357 | 30 198 207 90 26 216 590 Entered New Map 151 | . . 88 37 26 . . Time Decay 946 | 30 148 109 53 . 206 400 Lost Part 260 | . 50 10 . . 10 190 Squads Dispatched 7 | . 3 . . . . 4 Investigation 2 | . 2 . . . . . Extermination . | . . . . . . . Reinforcement 5 | . 1 . . . . 4 Assault . | . . . . . . . Garrison . | . . . . . . . Intercept . | . . . . . . . Searches Triggered . | . . . . . . . Construction Impeded 3 | . . . . . . 3 Haulers Reinforced . | . . . . . . . Active Scanning Responses . | . . . . . . . Cargo Convoy Interrupts . | . . . . . . . Stealth | -11 -10 -9 -9 -9 -8 -8 --------- Run | Yrd Mat Mat Min Exi Min Mat Distress Signals 4 | . 3 . . . . 1 Communications Jammed . | . . . . . . . Distress Signals . | . . . . . . . Times Spotted 69 | . 19 4 2 . 9 35 Peak Tracking Total 5 | . 5 4 2 . 3 4 Tactical Retreats 6 | . 3 . . . 2 1 Traps | -11 -10 -9 -9 -9 -8 -8 ------- Run | Yrd Mat Mat Min Exi Min Mat Traps Triggered 2 | . 2 . . . . . Indirectly . | . . . . . . . Trap Hack Attempts . | . . . . . . . Triggered . | . . . . . . . Disarmed . | . . . . . . . Reprogrammed . | . . . . . . . Reused . | . . . . . . . Traps Extracted . | . . . . . . . Installed . | . . . . . . . Triggered . | . . . . . . . Machines | -11 -10 -9 -9 -9 -8 -8 ---------- Run | Yrd Mat Mat Min Exi Min Mat Machines Disabled 5 | . . . . . . 5 Max in Single Turn 3 | . . . . . . 3 Machines Repaired . | . . . . . . . Machines Dismantled . | . . . . . . . Machines Sabotaged . | . . . . . . . Overloaded Fab Kills . | . . . . . . . Hacking | -11 -10 -9 -9 -9 -8 -8 --------- Run | Yrd Mat Mat Min Exi Min Mat Machines Accessed 9 | . 1 3 1 . . 4 Terminals 8 | . 1 3 1 . . 3 Fabricators . | . . . . . . . Repair Stations 1 | . . . . . . 1 Recycling Units . | . . . . . . . Scanalyzers . | . . . . . . . Garrison Access . | . . . . . . . Total Hacks 22 | . 3 10 1 . . 8 Successful 12 | . 1 6 . . . 5 Failed 10 | . 2 4 1 . . 3 Catastrophic . | . . . . . . . Database Lockouts . | . . . . . . . Manual 1 | . . . . 1 . . Terminals 20 | . 3 10 1 . . 6 Fabricators . | . . . . . . . Repair Stations 2 | . . . . . . 2 Recycling Units . | . . . . . . . Scanalyzers . | . . . . . . . Garrison Access . | . . . . . . . Terminal Hacks 10 | . 1 6 . . . 3 Record 5 | . . 5 . . . . Branch Access Points 1 | . 1 . . . . . Alert Level 3 | . . 1 . . . 2 Hauler Manifests 1 | . . . . . . 1 Fabricator Hacks . | . . . . . . . Repair Station Hacks 2 | . . . . . . 2 Scan Component 1 | . . . . . . 1 Repair 1 | . . . . . . 1 Recycling Unit Hacks . | . . . . . . . Scanalyzer . | . . . . . . . Garrison Access Hacks . | . . . . . . . Unauthorized Hacks . | . . . . . . . Terminals . | . . . . . . . Fabricators . | . . . . . . . Repair Stations . | . . . . . . . Recycling Units . | . . . . . . . Scanalyzers . | . . . . . . . Garrison Access . | . . . . . . . Data Cores Recovered . | . . . . . . . Used . | . . . . . . . Hacking Detections 7 | . 1 3 1 . . 2 Full Trace Events 1 | . 1 . . . . . Feedback Events . | . . . . . . . Feedback Blocked . | . . . . . . . Robot Schematics Acquired . | . . . . . . . Robots Built . | . . . . . . . Authchips . | . . . . . . . Time . | . . . . . . . Total Robot Build Rating . | . . . . . . . Part Schematics Acquired . | . . . . . . . Parts Built . | . . . . . . . Authchips . | . . . . . . . Time . | . . . . . . . Total Part Build Rating . | . . . . . . . Parts Repaired 1 | . . . . . . 1 Time 60 | . . . . . . 60 Parts Recycled . | . . . . . . . Recycled Matter . | . . . . . . . Retrieved Matter . | . . . . . . . Retrieved Components . | . . . . . . . Parts Scanalyzed . | . . . . . . . Part Schematics Acquired . | . . . . . . . Parts Damaged . | . . . . . . . Bothacking | -11 -10 -9 -9 -9 -8 -8 ------------ Run | Yrd Mat Mat Min Exi Min Mat Used RIF Installer . | . . . . . . . Robots Hacked . | . . . . . . . Non-combat . | . . . . . . . Combat . | . . . . . . . Robot Hacks Applied . | . . . . . . . Relay Couplers Released . | . . . . . . . Fabnet Peak Effective % . | . . . . . . . Robots Rewired . | . . . . . . . Allies Hacked . | . . . . . . . Hacks Repelled . | . . . . . . . Allies | -11 -10 -9 -9 -9 -8 -8 -------- Run | Yrd Mat Mat Min Exi Min Mat Total Allies 2 | . . . 2 . . . Largest Group 2 | . . . 2 2 . . Highest-Rated Group 47 | . . . 47 47 . . Highest-Rated Ally 31 | . . . 31 31 . . Total Orders . | . . . . . . . Ally Attacks . | . . . . . . . Total Damage . | . . . . . . . Kills . | . . . . . . . Allies Corrupted . | . . . . . . . Allies Melted . | . . . . . . . Intel | -11 -10 -9 -9 -9 -8 -8 ------- Run | Yrd Mat Mat Min Exi Min Mat Active Infowar (turns) 2535 | 7 400 266 184 . 1349 329 Terrain 2535 | 7 400 266 184 . 1349 329 Robot Analysis Total . | . . . . . . . Derelict Logs Recovered . | . . . . . . . Drone Launches . | . . . . . . . Drone Recoveries . | . . . . . . . Exploration | -11 -10 -9 -9 -9 -8 -8 ------------- Run | Yrd Mat Mat Min Exi Min Mat Turns Passed 4530 | 244 400 279 248 773 1376 1210 Spaces Moved 2013 | 88 186 200 165 463 513 398 Core 69 | 69 . . . . . . Treads . | . . . . . . . Legs 1740 | 19 186 200 165 463 513 194 Wheels . | . . . . . . . Hover 204 | . . . . . . 204 Flight . | . . . . . . . Fastest Speed 50 | 50 120 120 120 120 190 98 Average Speed 170 | 208 120 120 120 166 219 171 Slowest Speed 470 | 250 120 120 120 190 260 470 Overloaded Moves . | . . . . . . . Propulsion Burnouts . | . . . . . . . Robots Hopped . | . . . . . . . Potential Cave-ins . | . . . . . . . Cave-ins Triggered . | . . . . . . . Exploration Rate (%) 42 | 5 41 19 36 78 86 30 Regions Visited 6 Branch Regions 3 Pre-discovered Areas . | . . . . . . . Known Exits Taken . | . . . . . . . Unknown Exits Taken 6 | 1 1 1 1 1 1 . Scrap Searched 5 | . . . 2 . 3 . Spaces Dug . | . . . . . . . Terrain Destroyed 67 | . . . . . 1 66 Melee . | . . . . . . . Projectile 20 | . . . . . 1 19 AOE 47 | . . . . . . 47 Terrain Rammed . | . . . . . . . Walls Destroyed . | . . . . . . . Machines Disabled . | . . . . . . . Actions | -11 -10 -9 -9 -9 -8 -8 --------- Run | Yrd Mat Mat Min Exi Min Mat Total 2747 | 120 262 223 198 466 719 759 Wait 370 | . 6 1 17 1 170 175 Move 2007 | 87 185 199 164 462 512 398 Hop . | . . . . . . . Pick Up 68 | 10 9 6 2 2 8 31 Fast Attach 5 | . 1 . 1 1 . 2 Attach 45 | 7 5 3 . . 3 27 Detach 2 | . . . . . . 2 Swap 5 | . 2 2 1 . . . Drop 19 | . 1 2 3 . 1 12 Fire 222 | 16 52 9 10 . 25 110 Melee . | . . . . . . . Ram 2 | . . . . . . 2 Kick 2 | . 1 1 . . . . Crush . | . . . . . . . Escape Stasis . | . . . . . . . Rewire . | . . . . . . . Trap . | . . . . . . . Miscellaneous . | . . . . . . . Route ------- -11/Scrapyard -10/Materials (discovered 2 exits: *Mat / Min) -9/Materials (discovered 2 exits: Mat / *Min) -9/Mines -9/Exiles -8/Mines -8/Materials History --------- Turn | Location | Event 27 | -11/Scrapyard | Discovered new exit (range 15) 245 | -11/Scrapyard | Entered Materials 316 | -10/Materials | Build established: Mutant 551 | -10/Materials | Lost 4 parts (1p2n1w) 556 | -10/Materials | Discovered new exit (range 13) 622 | -10/Materials | Identified exit to Mines 645 | -10/Materials | Entered another Materials area 645 | -9/Materials | Evolved 2 slots: Propulsion x1, Utility x1 733 | -9/Materials | Discovered new exit (range 6) 775 | -9/Materials | Discovered new exit (range 14) 799 | -9/Materials | Build established: Scavenger-Mutant 924 | -9/Materials | Entered Mines 1100 | -9/Mines | Discovered new exit (range 11) 1157 | -9/Mines | Deemed a non-threat by the Exiles lab entrance 1172 | -9/Mines | Entered Exiles 1172 | -9/Exiles | Accompanied by 2 allies 1202 | -9/Exiles | Led the pair of lost Derelicts to a safe place 1202 | -9/Exiles | Met 8R-AWN 1223 | -9/Exiles | Met EX-HEX 1265 | -9/Exiles | Met EX-BIN 1280 | -9/Exiles | Aligned with FarCom system 1281 | -9/Exiles | Given EX-Vault access code 1320 | -9/Exiles | Met EX-DEC 1480 | -9/Exiles | Visited The Gauntlet 1714 | -9/Exiles | Opened EX-Vault 1722 | -9/Exiles | Found Prototype Ballistic Gun 1787 | -9/Exiles | Warned to stay clear of 0b10 Research branches 1922 | -9/Exiles | Discovered new exit (range 14) 1945 | -9/Exiles | Left Exiles lab with XL Autogun Array 1945 | -9/Exiles | Entered Mines 2259 | -8/Mines | Build established: Scavenger-Skirmisher 3287 | -8/Mines | Discovered new exit (range 12) 3321 | -8/Mines | Entered Materials 3321 | -8/Materials | Evolved 2 slots: Propulsion x1, Utility x1 3888 | -8/Materials | Lost 3 parts (1n1u1w) 4098 | -8/Materials | Repaired Aerolev Unit 4383 | -8/Materials | Core integrity fell below 50% 4411 | -8/Materials | Core integrity fell below 20% 4438 | -8/Materials | Lost 7 parts (1p5n1w) 4531 | -8/Materials | Destroyed by S-10 Pest with Light Assault Rifle Last Messages --------------- 04407_ Slug penetrates Wall. 04407_ Hvy. Assault Rifle destroyed. 04410_ Penetrated by Slug. 04413_ Acquired Autogun. 04413_ Penetrated by Slug. 04424_ X-62 Marksman destroyed. 04433_ Acquired Gauss Rifle. 04434_ Acquired 51 matter. 04445_ Acquired 73 matter. 04452_ Acquired Imp. Carbon-fiber Leg. 04465_ Acquired 38 matter. 04478_ Connecting with Terminal... >>Alert(Check) Current Alert Level: Low Security 04482_ Acquired Imp. Deuterium Engine. 04492_ Acquired Lgt. Assault Rifle. 04522_ Autogun destroyed. 04525_ Slug penetrates S-10 Pest. 04527_ S-10 Pest destroyed. 04530_ Slug penetrates Wall. Map ----- +----------------------------------------------------+ | ??????????????#! ## ## ????????????????? | | ??????????????#! # ????????????????? | | ??????????????#!! +?????????????????? | | ??????????????#!! #?????????????????? | | ??????????????#!! #?????????????????? | | ??????????????#!! #?????????????????? | | ??????????????##### #?????????????????? | | ??????????????????# #?????????????????? | | ???????????###????# #?????????????????? | | ???????????#! ! ??# #?????????????????? | | ???????????# # #?????????????????? | | ???????????# + #?????????????????? | | ???????????#! # #?????????????????? | | ???????????# ![??# #?????????????????? | | ???????????# ????# #?????????????????? | | ???????????#??????# #?????????????????? | | ??????????????????# #?????????????????? | | ??????????????????# #?????????????????? | | ????????########### #?????????????????? | | ???????##! # #?????????????????? | | ???????#%=! ! "" # #?????????????????? | | ???????##[= !T" #*= ##########+##?????? | | ????????# ! !"" # =* ????? | | ????????# # ????? | | ????????#! === %# ????? | | ????????# === @s/ ##########w#??????? | | ????????# === s# #?????????????????? | | ????????########### #?????????????????? | | ??????????????????# #?????????????????? | | ?????????????????? #?????????????????? | | ????????????????? #?????????????????? | | ???????????????? #?????????????????? | | ????????????????#######?????????????????? | | ????????????????????????????????????????? | | ????????????????????????????????????????? | | ????????????????????????????????????????? | | ????????????????????????????????????????? | | ????????????????????????????????????????? | | ????????????????????????????????????????? | | ????????????????????????????????????????? | | ????????????????????????????????????????? | | ????????????????????????????????????????? | | ????????????????????????????????????????? | | ????????????????????????????????????????? | | ????????????????????????????????????????? | | ????????????????????????????????????????? | | ????????????????????????????????????????? | | ????????????????????????????????????????? | | ????????????????????????????????????????? | | ????????????????????????????????????????? | +----------------------------------------------------+ Best States ------------- Heat Dissipation 41 Energy Generation 16 Energy Capacity 290 Matter Stores 400 Matter Capacity 400 Sight Range 16 Terrain Scan Range 16 Terrain Scan Density 85 Evasion (%) 55 Targeting Accuracy 8 Item Schematics ----------------- None Robot Schematics ------------------ None Fabricated ------------ Nothing Repaired ---------- Aerolev Unit | 3% | -8/Materials Alien Tech Used ----------------- None Achievements -------------- None Challenges ------------ None Game ------ Seed StasisConceptEdition Manual? 0 Play Time 00:45:02 Cumulative 13.7 hours Start 2025.07.16 @ 16:33:30 End 2025.07.16 @ 17:17:30 Sessions 1 Manual Loads 0 Difficulty Rogue Special Mode None Game No. 20 Rogue 20 Adventurer 0 Explorer 0 Win Type - Total 0 Types 0/0/0/0/0/0/0/0/0/0 Lore% 14 Gallery% 15 Achievement% 16 Wizard Run 0 Options --------- Layout 1 ASCII 0 Keyboard 0 Movement Mouse Keybinds 0 Fullscreen 1 Font 24/Smallcaps Map View 50x40 Zoom Use 0% Tactical HUD 1 Map Filters NONE Filters NONE Steam 1 RUN: 500b177e-7d18-45d9-a83b-0e7a2ff0cbba